Workbook

Sheet 1ОиДинфоб (2)
A1: № п/п | B1: Муниципальное образование | C1: Наименование образовательной организации | D1: Показатель 1.1 | J1: Показатель 1.2 | M1: Показатель 1.3 | S1: Итого по критерию:
D2: 1.1.1. Объем информации, размещенной на информационных стендах в помещении организации | F2: 1.1.2. Объем информации, размещенной на официальном сайте организации | H2: Значение показателя 1.1 | I2: Значение показателя 1.1 с учетом значимости | J2: Количество функционирующих дистанционных способов взаимодействия | K2: Значение показателя 1.2 | L2: Значение показателя 1.2 с учетом значимости | M2: Число получателей услуг, удовлетворенных качеством, полнотой и доступностью информации о деятельности организации, размещенной на стендах организации | N2: Число опрошенных получателей услуг, ответивших на соответствующий вопрос анкеты | O2: Число получателей услуг, удовлетворенных качеством, полнотой и доступностью информации о деятельности организации, размещенной на сайте организации | P2: Число опрошенных получателей услуг, ответивших на соответствующий вопрос анкеты | Q2: Значение показателя 1.3 | R2: Значение показателя 1 .3 с учетом веса
H3: 100 | I3: 30 | K3: 100 | L3: 30 | Q3: 100 | R3: 40 | S3: =I3+L3+R3 -> 100
A4: 48 | B4: Краснощековский район | C4: МБУДО «Краснощековский районный детско-юношеский центр» | D4: 8 | E4: 9 | F4: 32 | G4: 35 | H4: 89.4 | I4: =H4*0.3 -> 26.82 | J4: 4 | K4: =IF(J4<=3,J4*30,100) -> 100 | L4: =K4*0.3 -> 30 | M4: 114 | N4: 114 | O4: 109 | P4: 110 | Q4: =0.5*(M4/N4+O4/P4)*100 -> 99.54545455 | R4: =Q4*0.4 -> 39.81818182 | S4: =I4+L4+R4 -> 96.63818182

Sheet 1ОиДинфоб
A1: № п/п | B1: Муниципальное образование | C1: Наименование образовательной организации | D1: Показатель 1.1 | H1: Показатель 1.2 | K1: Показатель 1.3 | Q1: Итого по критерию:
D2: 1.1.1. Объем информации, размещенной на информационных стендах в помещении организации | E2: 1.1.2. Объем информации, размещенной на официальном сайте организации | F2: Значение показателя 1.1 | G2: Значение показателя 1.1 с учетом значимости | H2: Количество функционирующих дистанционных способов взаимодействия | I2: Значение показателя 1.2 | J2: Значение показателя 1.2 с учетом значимости | K2: Число получателей услуг, удовлетворенных качеством, полнотой и доступностью информации о деятельности организации, размещенной на стендах организации | L2: Число опрошенных получателей услуг, ответивших на соответствующий вопрос анкеты | M2: Число получателей услуг, удовлетворенных качеством, полнотой и доступностью информации о деятельности организации, размещенной на сайте организации | N2: Число опрошенных получателей услуг, ответивших на соответствующий вопрос анкеты | O2: Значение показателя 1.3 | P2: Значение показателя 1 .3 с учетом веса
F3: 100 | G3: 30 | I3: 100 | J3: 30 | O3: 100 | P3: 40 | Q3: =G3+J3+P3 -> 100
A4: 48 | B4: Краснощековский район | C4: МБУДО «Краснощековский районный детско-юношеский центр» | D4: 8 | E4: 32 | F4: 89.4 | G4: 26.8 | H4: 4 | I4: 100 | J4: 30 | K4: 114 | L4: 114 | M4: 109 | N4: 110 | O4: 99.54545455 | P4: 39.81818182 | Q4: 96.6

Sheet 2КомфУслНал
A1: № п/п | B1: Муниципальное образование | C1: Наименование образовательной организации | D1: Наличие в образовательных организациях комфортных условий для предоставления услуг
D2: Наличие комфортной зоны отдыха (ожидания) оборудованной соответствующей мебелью | E2: Наличие и понятность навигации внутри организации | F2: Наличие и доступность питьевой воды | G2: Наличие и доступность санитарно-гигиенических помещений | H2: Санитарное состояние помещений организации | I2: Транспортная доступность (доступность общественного транспорта и наличие парковки) | J2: Доступность записи на получение услуги (по телефону, с использованием сети «Интернет» на официальном сайте ор | K2: Итого:
A3: 48 | B3: Краснощековский район | C3: МБУДО «Краснощековский районный детско-юношеский центр» | D3: 1 | E3: 1 | F3: 1 | G3: 1 | H3: 1 | I3: 1 | J3: 1 | K3: =SUM(D3:J3) -> 7

Sheet 2КомУслОц
A1: № п/п | B1: Муниципальное образование | C1: Наименование образовательной организации | D1: Обеспечение в организации социальной сферы комфортных условий для предоставления услуг
D2: 2.1.1. Наличие комфортных условий для предоставления услуг | G2: Показатель 2.3 Доля получателей услуг, удовлетворенных комфортностью условий предоставления услуг | K2: Итого по критерию:
D3: Количество комфортных условий для предоставления услуг | E3: Значение показателя 2.1.1 | F3: Значение показателя с учетом значимости | G3: Число получателей услуг, удовлетворенных комфортностью предоставления услуг организацией образования | H3: Число получателей услуг, опрошенных по данному вопросу | I3: Значение показателя 2.3 | J3: Значение показателя 2.3 с учетом значимости
E4: 100 | F4: 50 | I4: 100 | J4: =I4*0.5 -> 50 | K4: =F4+J4 -> 100
A5: 48 | B5: Краснощековский район | C5: МБУДО «Краснощековский районный детско-юношеский центр» | D5: 7 | E5: =IF(D5<=4,D5*20,100) -> 100 | F5: 50 | G5: 116 | H5: 117 | I5: =G5/H5*100 -> 99.14529915 | J5: 49.5 | K5: =F5+J5 -> 99.5

Sheet 3УслДостИнвНал
B1: № п/п | C1: Муниципальное образование | D1: Наименование образовательной организации | E1: Оборудование территории, прилегающей к организации, и ее помещений с учетом доступности для инвалидов: | K1: Обеспечение в организации условий доступности, позволяющих инвалидам получать услуги наравне с другими, включая: | R1: Значение показателя с учетом значимости | T1: Итого:
E2: Оборудование входных групп пандусами/подъемными платформами; | F2: Наличие выделенных стоянок для автотранспортных средств инвалидов; | G2: Наличие адаптированных лифтов, поручней, расширенных дверных проемов; | H2: Наличие сменных кресел-колясок; | I2: Наличие специально оборудованных санитарно-гигиенических помещений в организации | J2: Количество условий | K2: Дублирование для инвалидов по слуху и зрению звуковой и зрительной информации | L2: Дублирование надписей, знаков и иной текстовой и графической информации знаками, выполненными рельефно-точечным шрифтом Брайля | M2: Возможность предоставления инвалидам по слуху (слуху и зрению) услуг сурдопереводчика (тифлосурдопереводчика) | N2: Наличие альтернативной версии официального сайта организации социальной сферы в сети «Интернет» для инвалидов по зрению | O2: Помощь, оказываемая работниками организации, прошедшими необходимое обучение (инструктирование), по сопровождению инвалидов в помещении | P2: Наличие возможности предоставления услуги в дистанционном режиме или на дому | Q2: Количество условий
B3: 48 | C3: Краснощековский район | D3: МБУДО «Краснощековский районный детско-юношеский центр» | E3: 0 | F3: 1 | G3: 0 | H3: 0 | I3: 0 | J3: =SUM(E3:I3) -> 1 | K3: 0 | L3: 0 | M3: 0 | N3: 1 | O3: 0 | P3: 1 | Q3: =SUM(N3:P3) -> 2 | R3: =SUM(K3:P3) -> 2 | S3: 2 | T3: =IF(AND(Q3=3,S3=2),100,IF(AND(Q3=2,S3=2),60,IF(AND(Q3=1,S3=2),30,R3*20))) -> 60

Sheet 3УслДостИнвОц
A1: № п/п | B1: Муниципальное образование | C1: Наименование образовательной организации | D1: Показатель 3.1 | G1: Показатель 3.2 | J1: Показатель 3.3 | N1: Итого по критерию:
D2: Количество условий доступности образовательной организации для инвалидов | E2: Значение показателя 3.1 | F2: Значение показателя 3.1 с учетом значимости | G2: Количество условий доступности, позволяющих инвалидам получать услуги наравне с другими | H2: Значение показателя 3.2 | I2: Значение показателя 3.2 с учетом значимости | J2: Число получателей услуг-инвалидов, удовлетворенных доступностью услуг | K2: Число получателей услуг-инвалидов, опрошенных по данному вопросу | L2: Значение показателя 3.3 | M2: Значение показателя 3.3 с учетом значимости
E3: 100 | F3: =E3*0.3 -> 30 | H3: 100 | I3: =H3*0.4 -> 40 | L3: 100 | M3: =L3*0.3 -> 30 | N3: =F3+I3+M3 -> 100
A4: 48 | B4: Краснощековский район | C4: МБУДО «Краснощековский районный детско-юношеский центр» | D4: 1 | E4: =IF(D4<=4,D4*20,100) -> 20 | F4: =E4*0.3 -> 6 | G4: 2 | H4: 40 | I4: =H4*0.4 -> 16 | J4: 7 | K4: 7 | L4: =J4/K4*100 -> 100 | M4: =L4*0.3 -> 30 | N4: =F4+I4+M4 -> 52
O144: 1
O145: 2
O146: 3
O147: 4
O148: 5
O149: 6
O150: 7
O151: 8
O152: 9
O153: 10
O154: 11
O155: 12
O156: 13
O157: 14
O158: 15
O159: 16
O160: 17
O161: 18
O162: 19
O163: 20
O164: 21
O165: 22
O166: 23
O167: 24
O168: 25
O169: 26
O170: 27
O171: 28
O172: 29
O173: 30
O174: 31
O175: 32

Sheet 4ДобрВежл
A1: № п/п | B1: № п/п | C1: Муниципальное образование | D1: Наименование образовательной организации | E1: Показатель 4.1 Доля получателей услуг, удовлетворенных доброжелательностью, вежливостью работников организации социальной сферы | I1: Показатель 4.2 Доля получателей услуг, удовлетворенных доброжелательностью, вежливостью работников организации социальной сферы, обеспечивающих непосредственное оказание услуги | M1: Показатель 4.3 Доля получателей услуг, удовлетворенных доброжелательностью, вежливостью работников организации социальной сферы при использовании дистанционных форм взаимодействия | Q1: Итого по критерию:
E2: Число получателей услуг, удовлетворенных доброжелательностью, вежливостью работников организации социальной сферы, обеспечивающих первичный контакт и информирование получателя услуги | F2: Число опрошенных получателей услуг, ответивших на соответствующий вопрос анкеты | G2: Значение показателя 4.1 | H2: Значение показателя 4.1 с учетом значимости | I2: Число получателей услуг, удовлетворенных доброжелательностью, вежливостью работников организации социальной сферы, обеспечивающих непосредственное оказание услуги | J2: Число опрошенных получателей услуг, ответивших на соответствующий вопрос анкеты | K2: Значение показателя 4.2 | L2: Значение показателя 4.2 с учетом значимости | M2: Число получателей услуг, удовлетворенных доброжелательностью, вежливостью работников организации социальной сферы при использовании дистанционных форм взаимодействия | N2: Число опрошенных получателей услуг, ответивших на соответствующий вопрос анкеты | O2: Значение показателя 4.3 | P2: Значение показателя 4.3 с учетом значимости
G3: 100 | H3: =G3*0.4 -> 40 | K3: 100 | L3: =K3*0.4 -> 40 | O3: 100 | P3: =O3*0.2 -> 20 | Q3: =H3+L3+P3 -> 100
B4: 48 | C4: Краснощековский район | D4: МБУДО «Краснощековский районный детско-юношеский центр» | E4: 117 | F4: 117 | G4: =E4/F4*100 -> 100 | H4: =G4*0.4 -> 40 | I4: 117 | J4: 117 | K4: =I4/J4*100 -> 100 | L4: =K4*0.4 -> 40 | M4: 117 | N4: 117 | O4: =M4/N4*100 -> 100 | P4: =O4*0.2 -> 20 | Q4: =H4+L4+P4 -> 100

Sheet 5УдовлУсл
B1: № п/п | C1: Муниципальное образование | D1: Наименование образовательной организации | E1: Показатель 5.1 Доля получателей услуг, которые готовы рекомендовать организацию социальной сферы родственникам и знакомым | I1: Показатель 5.2 Доля получателей услуг, удовлетворенных организационными условиями предоставления услуг | M1: Показатель 5.3 Доля получателей услуг, удовлетворенных в целом условиями оказания услуг в организации | Q1: Итого по критерию:
E2: Число получателей услуг, которые готовы рекомендовать организацию родственникам и знакомым | F2: Число опрошенных получателей услуг, ответивших на соответствующий вопрос анкеты | G2: Значение показателя 5.1 | H2: Значение показателя 5.1 с учетом значимости | I2: Число получателей услуг, удовлетворенных организационными условиями предоставления услуг | J2: Число опрошенных получателей услуг, ответивших на соответствующий вопрос анкеты | K2: Значение показателя 5.2 | L2: Значение показателя 5.2 с учетом значимости | M2: Число получателей услуг, удовлетворенных в целом условиями оказания услуг в организации социальной сферы | N2: Число опрошенных получателей услуг, ответивших на соответствующий вопрос анкеты | O2: Значение показателя 5.3 | P2: Значение показателя 5.3 с учетом значимости
G3: 100 | H3: =G3*0.3 -> 30 | K3: 100 | L3: =K3*0.2 -> 20 | O3: 100 | P3: =O3*0.5 -> 50 | Q3: =H3+L3+P3 -> 100
B4: 48 | C4: Краснощековский район | D4: МБУДО «Краснощековский районный детско-юношеский центр» | E4: 117 | F4: 117 | G4: =E4/F4*100 -> 100 | H4: =G4*0.3 -> 30 | I4: 117 | J4: 117 | K4: =I4/J4*100 -> 100 | L4: =K4*0.2 -> 20 | M4: 116 | N4: 117 | O4: 99 | P4: =O4*0.5 -> 49.5 | Q4: =H4+L4+P4 -> 99.5

Sheet Интегр
A1: Место в рейтинге | B1: Муниципальное образование | C1: Наименование образовательной организации | D1: Интегральное значение показателя | E1: 1 - Показатели, характеризующие откртость и доступность информации об организации | I1: 2 - Показатели, характеризующие комфортность условий предоставления услуг | L1: 3 - Показатели, характеризующие доступность услуг для инвалидов | P1: 4 - Показатели, характеризующие доброжелательность, вежливость работников организации | T1: 5 - Показатели, характеризующие удовлетворенность условиями оказания услуг
E2: 1.1 | F2: 1.2 | G2: 1.3 | H2: К1 | I2: 2.1 | J2: 2.3 | K2: К2 | L2: 3.1 | M2: 3.2 | N2: 3.3 | O2: К3 | P2: 4.1 | Q2: 4.2 | R2: 4.3 | S2: К4 | T2: 5.1 | U2: 5.2 | V2: 5.3 | W2: К5
E3: 30 | F3: 30 | G3: 40 | H3: 100 | I3: 50 | J3: 50 | K3: 100 | L3: 30 | M3: 40 | N3: 30 | O3: 100 | P3: 40 | Q3: 40 | R3: 20 | S3: 100 | T3: 30 | U3: 20 | V3: 50 | W3: 100
A4: 40 | B4: Краснощековский район | C4: МБУДО «Краснощековский районный детско-юношеский центр» | D4: =AVERAGE(H4,K4,O4,S4,W4) -> 89.52363636 | E4: ='1ОиДинфоб'!G4 -> 26.8 | F4: ='1ОиДинфоб'!J4 -> 30 | G4: ='1ОиДинфоб'!P4 -> 39.81818182 | H4: =E4+F4+G4 -> 96.61818182 | I4: ='2КомУслОц'!F5 -> 50 | J4: ='2КомУслОц'!J5 -> 49.5 | K4: =I4+J4 -> 99.5 | L4: ='3УслДостИнвОц'!F4 -> 6 | M4: ='3УслДостИнвОц'!I4 -> 16 | N4: ='3УслДостИнвОц'!M4 -> 30 | O4: =L4+M4+N4 -> 52 | P4: ='4ДобрВежл'!H4 -> 40 | Q4: ='4ДобрВежл'!L4 -> 40 | R4: ='4ДобрВежл'!P4 -> 20 | S4: =SUM(P4:R4) -> 100 | T4: ='5УдовлУсл'!H4 -> 30 | U4: ='5УдовлУсл'!L4 -> 20 | V4: ='5УдовлУсл'!P4 -> 49.5 | W4: =SUM(T4:V4) -> 99.5
A8: Место в рейтинге | B8: Муниципальное образование | C8: Наименование образовательной организации | D8: Интегральное значение показателя | E8: К1 | F8: К2 | G8: К3 | H8: К4 | I8: К5
A9: 40 | B9: Краснощековский район | C9: МБУДО «Краснощековский районный детско-юношеский центр» | D9: 89.52363636 | E9: 96.61818182 | F9: 99.5 | G9: 52 | H9: 100 | I9: 99.5
